[Event "Championnat d'Europe de Blitz"]
[Date "2024.12.09"]
[White "Lagarde, Maxime"]
[Black "Kuzubov, Yuriy"]
[WhiteElo "2600"]
[BlackElo "2595"]
[Round "13.17"]
[Result "0-1"]
[TimeControl "180+2"]

1. e4 {[%emt 00:00:01] [%clk 00:03:02]} e6 {[%emt 00:00:01] [%clk 00:03:04]} 2.
d4 {[%emt 00:00:01] [%clk 00:03:03]} d5 {[%emt 00:00:01] [%clk 00:03:05]} 3. Nd2
{[%emt 00:00:03] [%clk 00:03:02]} Nc6 {[%emt 00:00:02] [%clk 00:03:05]} 4. Ngf3
{[%emt 00:00:07] [%clk 00:02:57]} Nf6 {[%emt 00:00:01] [%clk 00:03:06]} 5. e5
{[%emt 00:00:02] [%clk 00:02:57]} Nd7 {[%emt 00:00:01] [%clk 00:03:07]} 6. Nb3
{[%emt 00:00:07] [%clk 00:02:51]} b6 {[%emt 00:00:08] [%clk 00:03:01]} 7. a4
{[%emt 00:00:07] [%clk 00:02:46]} a5 {[%emt 00:00:02] [%clk 00:03:01]} 8. Bb5
{[%emt 00:00:03] [%clk 00:02:46]} Na7 {[%emt 00:00:08] [%clk 00:02:55]} 9. Be2
{[%emt 00:00:01] [%clk 00:02:46]} Be7 {[%emt 00:00:09] [%clk 00:02:49]} 10. c3
{[%emt 00:00:17] [%clk 00:02:31]} c5 {[%emt 00:00:13] [%clk 00:02:37]} 11. Be3
{[%emt 00:00:09] [%clk 00:02:24]} Nc6 {[%emt 00:00:06] [%clk 00:02:33]} 12. Nc1
{[%emt 00:00:12] [%clk 00:02:14]} O-O {[%emt 00:00:35] [%clk 00:02:00]} 13. Nd3
{[%emt 00:00:12]} Ba6 {[%clk 00:01:53]} 14. O-O {[%emt 00:00:11] [%clk
00:02:04]} Rc8 {[%emt 00:00:06] [%clk 00:01:50]} 15. Nf4 {[%emt 00:00:28] [%clk
00:01:38]} Bxe2 {[%emt 00:00:02] [%clk 00:01:50]} 16. Qxe2 {[%emt 00:00:01]
[%clk 00:01:38]} Re8 {[%emt 00:00:14] [%clk 00:01:38]} 17. Ne1 {[%emt 00:00:09]
[%clk 00:01:31]} cxd4 {[%emt 00:00:05] [%clk 00:01:36]} 18. cxd4 {[%emt
00:00:01] [%clk 00:01:31]} Nb4 {[%emt 00:00:04] [%clk 00:01:34]} 19. Qg4 {[%emt
00:00:11] [%clk 00:01:22]} Nf8 {[%emt 00:00:15] [%clk 00:01:21]} 20. g3 {[%emt
00:00:27] [%clk 00:00:57]} Qd7 {[%emt 00:00:11] [%clk 00:01:13]} 21. h4 {[%emt
00:00:03] [%clk 00:00:56]} Ng6 {[%emt 00:00:34] [%clk 00:00:40]} 22. Nfg2 {[%emt
00:00:16] [%clk 00:00:41]} Bf8 {[%emt 00:00:02] [%clk 00:00:41]} 23. h5 {[%emt
00:00:03] [%clk 00:00:41]} Ne7 {[%emt 00:00:01] [%clk 00:00:42]} 24. Nh4 {[%emt
00:00:05] [%clk 00:00:37]} Nf5 {[%emt 00:00:11] [%clk 00:00:34]} 25. Nxf5 {[%emt
00:00:04] [%clk 00:00:35]} exf5 {[%clk 00:00:35]} 26. Qe2 {[%emt 00:00:02] [%clk
00:00:35]} Rc6 {[%emt 00:00:07] [%clk 00:00:31]} 27. Ng2 {[%emt 00:00:11] [%clk
00:00:26]} Rc2 {[%emt 00:00:04] [%clk 00:00:29]} 28. Qf3 {[%clk 00:00:27]} Rxb2
{[%emt 00:00:05] [%clk 00:00:25]} 29. Nh4 {[%emt 00:00:02] [%clk 00:00:27]} g6
{[%emt 00:00:03] [%clk 00:00:25]} 30. Rac1 {[%emt 00:00:05] [%clk 00:00:23]} Rc8
{[%emt 00:00:05] [%clk 00:00:23]} 31. Rxc8 {[%emt 00:00:01] [%clk 00:00:23]}
Qxc8 {[%clk 00:00:24]} 32. Ng2 {[%emt 00:00:06] [%clk 00:00:20]} Qc2 {[%emt
00:00:05] [%clk 00:00:21]} 33. Rc1 {[%emt 00:00:07] [%clk 00:00:15]} Rb1 {[%emt
00:00:02] [%clk 00:00:21]} 34. Rxb1 {[%emt 00:00:03] [%clk 00:00:14]} Qxb1+
{[%clk 00:00:22]} 35. Kh2 {[%clk 00:00:15]} Qe4 {[%emt 00:00:06] [%clk
00:00:19]} 36. Qe2 {[%clk 00:00:15]} Qg4 {[%emt 00:00:05] [%clk 00:00:17]} 37.
Qxg4 {[%emt 00:00:11] [%clk 00:00:06]} fxg4 {[%clk 00:00:18]} 38. Nf4 {[%emt
00:00:02] [%clk 00:00:06]} g5 {[%emt 00:00:02] [%clk 00:00:17]} 39. Ne2 {[%emt
00:00:01] [%clk 00:00:07]} h6 {[%emt 00:00:01] [%clk 00:00:18]} 40. Nc3 {[%emt
00:00:01] [%clk 00:00:08]} Be7 {[%emt 00:00:05] [%clk 00:00:15]} 41. Kg2 {[%clk
00:00:09]} f6 {[%emt 00:00:04] [%clk 00:00:14]} 42. Kf1 {[%emt 00:00:01] [%clk
00:00:10]} Kf7 {[%emt 00:00:01] [%clk 00:00:15]} 43. Ke2 {[%clk 00:00:11]} Ke6
{[%emt 00:00:01] [%clk 00:00:16]} 44. exf6 {[%emt 00:00:01] [%clk 00:00:11]}
Bxf6 {[%clk 00:00:17]} 45. Nb5 {[%emt 00:00:02] [%clk 00:00:11]} Be7 {[%emt
00:00:05] [%clk 00:00:14]} 46. Nc7+ {[%emt 00:00:02] [%clk 00:00:12]} Kf5 {[%emt
00:00:02] [%clk 00:00:13]} 47. Bd2 {[%emt 00:00:03] [%clk 00:00:11]} Nc6 {[%emt
00:00:07] [%clk 00:00:09]} 48. Nxd5 {[%emt 00:00:03] [%clk 00:00:10]} Nxd4+
{[%emt 00:00:01] [%clk 00:00:10]} 49. Kd3 {[%clk 00:00:11]} Bc5 {[%emt 00:00:01]
[%clk 00:00:11]} 50. Be3 {[%emt 00:00:03] [%clk 00:00:10]} Ne6 {[%emt 00:00:04]
[%clk 00:00:09]} 51. Nxb6 {[%emt 00:00:07]} Bxe3 52. Kxe3 {[%clk 00:00:07]} Nc5
{[%emt 00:00:01] [%clk 00:00:08]} 53. Nc4 {[%emt 00:00:04] [%clk 00:00:05]} Nxa4
{[%emt 00:00:02] [%clk 00:00:08]} 54. Nxa5 {[%emt 00:00:01] [%clk 00:00:06]} Nb6
{[%emt 00:00:02] [%clk 00:00:08]} 55. Nc6 {[%emt 00:00:02] [%clk 00:00:05]} Nc4+
{[%emt 00:00:04] [%clk 00:00:07]} 56. Kd4 {[%emt 00:00:02] [%clk 00:00:04]} Nd2
{[%emt 00:00:03] [%clk 00:00:07]} 57. Nb4 {[%emt 00:00:02] [%clk 00:00:04]} Nf3+
{[%emt 00:00:02] [%clk 00:00:06]} 58. Ke3 {[%emt 00:00:01] [%clk 00:00:05]} Ne5
{[%emt 00:00:02] [%clk 00:00:07]} 59. Nd5 {[%emt 00:00:01] [%clk 00:00:05]} Nd7
{[%emt 00:00:02] [%clk 00:00:08]} 60. Kd4 {[%emt 00:00:01] [%clk 00:00:06]} Ke6
{[%emt 00:00:03] [%clk 00:00:07]} 61. Ne3 {[%emt 00:00:03] [%clk 00:00:05]} Nf6
{[%emt 00:00:02] [%clk 00:00:08]} 62. Nc4 {[%emt 00:00:02] [%clk 00:00:04]} Nxh5
{[%emt 00:00:02] [%clk 00:00:08]} 63. Ne3 {[%emt 00:00:01] [%clk 00:00:05]} Nf6
{[%emt 00:00:01] [%clk 00:00:09]} 64. Kd3 {[%emt 00:00:02] [%clk 00:00:05]} h5
{[%emt 00:00:02] [%clk 00:00:09]} 65. Ke2 {[%emt 00:00:01] [%clk 00:00:05]} Ke5
{[%emt 00:00:02] [%clk 00:00:09]} 66. f3 {[%clk 00:00:06]} gxf3+ {[%emt
00:00:07] [%clk 00:00:04]} 67. Kxf3 {[%emt 00:00:01] [%clk 00:00:07]} Nd5 {[%emt
00:00:02] [%clk 00:00:04]} 68. Nc4+ {[%clk 00:00:08]} Kd4 {[%emt 00:00:02] [%clk
00:00:04]} 69. Nd6 {[%emt 00:00:01] [%clk 00:00:09]} g4+ {[%emt 00:00:03] [%clk
00:00:04]} 70. Kf2 {[%emt 00:00:01] [%clk 00:00:09]} Nf6 {[%emt 00:00:02] [%clk
00:00:04]} 71. Nf5+ {[%emt 00:00:02] [%clk 00:00:09]} Ke5 {[%emt 00:00:02] [%clk
00:00:05]} 72. Nh4 {[%clk 00:00:10]} Ne4+ {[%emt 00:00:01] [%clk 00:00:05]} 73.
Kg2 {[%clk 00:00:11]} Kd4 {[%emt 00:00:03]} 74. Ng6 {[%emt 00:00:02] [%clk
00:00:11]} Ke3 {[%emt 00:00:02]} 75. Nf4 {[%clk 00:00:11]} h4 {[%emt 00:00:03]
[%clk 00:00:05]} 76. Nh5 {[%emt 00:00:07] [%clk 00:00:06]} h3+ {[%emt 00:00:02]
[%clk 00:00:05]} 77. Kh2 {[%clk 00:00:07]} Kf3 {[%emt 00:00:01] [%clk 00:00:05]}
78. Ng7 {[%emt 00:00:03] [%clk 00:00:06]} Nxg3 {[%emt 00:00:03] [%clk 00:00:05]}
79. Ne6 {[%emt 00:00:01] [%clk 00:00:07]} Ne4 {[%emt 00:00:01] [%clk 00:00:05]}
80. Nd4+ {[%emt 00:00:01] [%clk 00:00:08]} Kf2 {[%emt 00:00:03] [%clk 00:00:05]}
81. Nf5 {[%emt 00:00:01] [%clk 00:00:08]} Ng5 {[%emt 00:00:03] [%clk 00:00:04]}
82. Kh1 {[%emt 00:00:06] [%clk 00:00:04]} g3 {[%clk 00:00:05]} 0-1

[Site "Europe Echecs"]

[Event "Championnat d'Europe de Blitz"]
[Date "2024.12.09"]
[White "Sargissian, Gabriel"]
[Black "Papasimakopoulos, Alexandros"]
[WhiteElo "2628"]
[BlackElo "2379"]
[Round "13.18"]
[Result "0-1"]
[TimeControl "180+2"]

1. d4 {[%clk 00:03:03]} d5 {[%emt 00:00:01] [%clk 00:03:04]} 2. c4 {[%clk
00:03:04]} e6 {[%emt 00:00:01] [%clk 00:03:05]} 3. Nc3 {[%emt 00:00:02] [%clk
00:03:04]} a6 {[%clk 00:03:07]} 4. cxd5 {[%emt 00:00:03] [%clk 00:03:02]} exd5
{[%emt 00:00:01] [%clk 00:03:08]} 5. Nf3 {[%clk 00:03:02]} c6 {[%emt 00:00:01]
[%clk 00:03:09]} 6. Bf4 {[%emt 00:00:25] [%clk 00:02:39]} Bd6 {[%emt 00:00:01]
[%clk 00:03:11]} 7. Be5 {[%emt 00:00:05] [%clk 00:02:36]} Bxe5 {[%emt 00:00:06]
[%clk 00:03:06]} 8. Nxe5 {[%emt 00:00:02] [%clk 00:02:36]} Nd7 {[%emt 00:00:01]
[%clk 00:03:07]} 9. Nd3 {[%emt 00:00:03] [%clk 00:02:35]} Ne7 {[%emt 00:00:04]
[%clk 00:03:06]} 10. e3 {[%emt 00:00:04] [%clk 00:02:33]} Nf5 {[%emt 00:00:02]
[%clk 00:03:06]} 11. Be2 {[%emt 00:00:05] [%clk 00:02:30]} O-O {[%emt 00:00:02]
[%clk 00:03:06]} 12. O-O {[%emt 00:00:01] [%clk 00:02:30]} Nd6 {[%emt 00:00:02]
[%clk 00:03:06]} 13. b4 {[%emt 00:00:04] [%clk 00:02:28]} Nf6 {[%emt 00:00:27]
[%clk 00:02:42]} 14. a4 {[%emt 00:00:03] [%clk 00:02:27]} Bf5 {[%emt 00:00:03]
[%clk 00:02:41]} 15. a5 {[%emt 00:00:03] [%clk 00:02:26]} Bxd3 {[%emt 00:00:07]
[%clk 00:02:36]} 16. Bxd3 {[%emt 00:00:01] [%clk 00:02:26]} Re8 {[%emt 00:00:08]
[%clk 00:02:30]} 17. Na4 {[%emt 00:00:02] [%clk 00:02:27]} Nd7 {[%emt 00:00:01]
[%clk 00:02:31]} 18. Nc5 {[%emt 00:00:06] [%clk 00:02:23]} Nxc5 {[%emt 00:00:03]
[%clk 00:02:30]} 19. bxc5 {[%clk 00:02:24]} Nb5 {[%emt 00:00:01] [%clk
00:02:31]} 20. Qd2 {[%emt 00:00:05] [%clk 00:02:21]} g6 {[%emt 00:00:04] [%clk
00:02:29]} 21. f4 {[%emt 00:00:12] [%clk 00:02:11]} f5 {[%emt 00:00:07] [%clk
00:02:24]} 22. Rf3 {[%emt 00:00:02] [%clk 00:02:09]} Re6 {[%emt 00:00:07] [%clk
00:02:20]} 23. g4 {[%emt 00:01:04] [%clk 00:01:07]} fxg4 {[%emt 00:00:11] [%clk
00:02:12]} 24. Rg3 {[%emt 00:00:01] [%clk 00:01:08]} Qh4 {[%emt 00:00:14] [%clk
00:01:59]} 25. f5 {[%emt 00:00:11] [%clk 00:00:59]} Rf6 {[%clk 00:02:00]} 26.
Rf1 {[%emt 00:00:16] [%clk 00:00:46]} Raf8 {[%emt 00:00:01] [%clk 00:02:01]} 27.
Rf4 {[%emt 00:00:02] [%clk 00:00:45]} h5 {[%emt 00:00:07] [%clk 00:01:57]} 28.
Qf2 {[%emt 00:00:12] [%clk 00:00:34]} Kg7 {[%emt 00:00:09] [%clk 00:01:51]} 29.
e4 {[%emt 00:00:07] [%clk 00:00:29]} dxe4 {[%emt 00:00:07] [%clk 00:01:45]} 30.
Bxe4 {[%emt 00:00:02] [%clk 00:00:30]} gxf5 {[%emt 00:00:04] [%clk 00:01:42]}
31. Bxf5 {[%emt 00:00:08] [%clk 00:00:24]} Qg5 {[%emt 00:00:31] [%clk 00:01:14]}
32. Bxg4 {[%emt 00:00:04] [%clk 00:00:21]} Rxf4 {[%emt 00:00:35] [%clk
00:00:41]} 33. Bf3 {[%emt 00:00:04]} Rg4 {[%emt 00:00:01]} 0-1

[Site "Europe Echecs"]

[Event "Championnat d'Europe de Blitz"]
[Date "2024.12.09"]
[White "Pancevski, Filip"]
[Black "Smeets, Jan"]
[WhiteElo "2420"]
[BlackElo "2552"]
[Round "13.19"]
[Result "1-0"]
[TimeControl "180+2"]

1. e4 {[%emt 00:17:25] [%clk 00:03:02]} c6 {[%clk 00:03:04]} 2. d4 {[%emt
00:00:01] [%clk 00:03:03]} d5 {[%clk 00:03:05]} 3. e5 {[%clk 00:03:04]} Bf5
{[%clk 00:03:06]} 4. Nd2 {[%clk 00:03:05]} e6 {[%emt 00:00:02] [%clk 00:03:07]}
5. Nb3 {[%clk 00:03:06]} Nd7 {[%emt 00:00:02] [%clk 00:03:06]} 6. Nf3 {[%emt
00:00:02] [%clk 00:03:06]} Qc7 {[%emt 00:00:02] [%clk 00:03:06]} 7. Be2 {[%emt
00:00:08] [%clk 00:03:00]} f6 {[%emt 00:00:09] [%clk 00:03:00]} 8. Bf4 {[%emt
00:00:50] [%clk 00:02:11]} fxe5 {[%emt 00:00:06] [%clk 00:02:56]} 9. dxe5 {[%emt
00:00:01] [%clk 00:02:12]} c5 {[%emt 00:00:06] [%clk 00:02:52]} 10. O-O {[%emt
00:00:11] [%clk 00:02:03]} Ne7 {[%emt 00:00:08] [%clk 00:02:46]} 11. Bg3 {[%emt
00:00:07] [%clk 00:01:57]} h6 {[%emt 00:00:20] [%clk 00:02:29]} 12. h3 {[%emt
00:00:06] [%clk 00:01:53]} g5 {[%emt 00:00:03] [%clk 00:02:28]} 13. c4 {[%emt
00:00:02] [%clk 00:01:54]} d4 {[%emt 00:00:07] [%clk 00:02:22]} 14. Bd3 {[%emt
00:00:01] [%clk 00:01:55]} g4 {[%emt 00:00:21] [%clk 00:02:03]} 15. hxg4 {[%emt
00:00:17] [%clk 00:01:40]} Bxg4 {[%emt 00:00:02] [%clk 00:02:03]} 16. Nbd2
{[%emt 00:00:05] [%clk 00:01:37]} Nf5 {[%emt 00:00:14] [%clk 00:01:51]} 17. Bh2
{[%emt 00:00:15] [%clk 00:01:24]} h5 {[%emt 00:00:29] [%clk 00:01:24]} 18. Bxf5
{[%emt 00:00:47] [%clk 00:00:39]} Bxf5 {[%emt 00:00:02] [%clk 00:01:24]} 19. Nh4
{[%clk 00:00:40]} Bd3 {[%emt 00:00:09] [%clk 00:01:17]} 20. Re1 {[%emt 00:00:07]
[%clk 00:00:35]} Be7 {[%emt 00:00:13] [%clk 00:01:07]} 21. Qf3 {[%emt 00:00:02]
[%clk 00:00:34]} Bc2 {[%emt 00:00:03] [%clk 00:01:06]} 22. Qh3 {[%emt 00:00:06]
[%clk 00:00:30]} O-O-O {[%emt 00:00:15] [%clk 00:00:54]} 23. Rac1 {[%emt
00:00:01] [%clk 00:00:30]} Bxh4 {[%emt 00:00:07] [%clk 00:00:49]} 24. Rxc2
{[%emt 00:00:03] [%clk 00:00:29]} Bg5 {[%emt 00:00:08] [%clk 00:00:43]} 25. Ne4
{[%emt 00:00:06] [%clk 00:00:25]} Bh6 {[%emt 00:00:31] [%clk 00:00:14]} 26. Nd6+
{[%clk 00:00:27]} Kb8 {[%emt 00:00:02] [%clk 00:00:15]} 27. Nf7 {[%clk
00:00:28]} d3 {[%emt 00:00:04] [%clk 00:00:14]} 28. Qxd3 {[%emt 00:00:07] [%clk
00:00:22]} Nb6 {[%emt 00:00:10] [%clk 00:00:06]} 29. Nxd8 {[%emt 00:00:03] [%clk
00:00:21]} Rxd8 {[%clk 00:00:08]} 30. Qg6 {[%emt 00:00:02] [%clk 00:00:21]} Bf8
{[%emt 00:00:03] [%clk 00:00:07]} 31. Qxe6 {[%emt 00:00:03] [%clk 00:00:20]} a6
{[%emt 00:00:03] [%clk 00:00:06]} 32. b3 {[%clk 00:00:21]} Ka7 {[%clk 00:00:08]}
33. Qf5 {[%emt 00:00:01] [%clk 00:00:21]} Be7 {[%emt 00:00:04] [%clk 00:00:06]}
34. Qxh5 {[%emt 00:00:03] [%clk 00:00:20]} Qc6 {[%emt 00:00:01] [%clk 00:00:07]}
35. e6 {[%emt 00:00:03] [%clk 00:00:19]} Rg8 {[%emt 00:00:01] [%clk 00:00:08]}
36. Qh3 {[%emt 00:00:02] [%clk 00:00:19]} Nc8 {[%emt 00:00:03] [%clk 00:00:08]}
37. Rd2 {[%emt 00:00:03] [%clk 00:00:17]} Nd6 {[%emt 00:00:02] [%clk 00:00:08]}
38. Bxd6 {[%emt 00:00:02] [%clk 00:00:18]} Bxd6 {[%clk 00:00:09]} 39. e7 {[%emt
00:00:04] [%clk 00:00:15]} Bc7 {[%emt 00:00:04] [%clk 00:00:07]} 40. Rde2 {[%emt
00:00:05] [%clk 00:00:12]} Re8 {[%emt 00:00:03] [%clk 00:00:06]} 41. Qe6 {[%emt
00:00:06] [%clk 00:00:09]} Bd6 {[%clk 00:00:07]} 42. Rd2 {[%emt 00:00:03] [%clk
00:00:08]} Rxe7 {[%emt 00:00:01] [%clk 00:00:09]} 43. Rxd6 {[%emt 00:00:04]
[%clk 00:00:06]} Rxe6 {[%emt 00:00:02] [%clk 00:00:09]} 44. Rdxe6 {[%emt
00:00:01] [%clk 00:00:06]} Qd7 {[%emt 00:00:02] [%clk 00:00:09]} 45. R1e2 {[%emt
00:00:03] [%clk 00:00:06]} a5 {[%emt 00:00:02] [%clk 00:00:09]} 46. g3 {[%emt
00:00:03] [%clk 00:00:05]} a4 {[%clk 00:00:10]} 47. bxa4 {[%emt 00:00:01] [%clk
00:00:06]} Qxa4 {[%clk 00:00:11]} 48. R6e4 {[%clk 00:00:08]} Ka6 {[%emt
00:00:04] [%clk 00:00:10]} 49. Kg2 {[%emt 00:00:01] [%clk 00:00:08]} Ka5 {[%emt
00:00:02] [%clk 00:00:11]} 50. g4 {[%emt 00:00:01] [%clk 00:00:09]} Qd7 {[%emt
00:00:01] [%clk 00:00:12]} 51. Kg3 {[%emt 00:00:02] [%clk 00:00:09]} Kb4 {[%emt
00:00:03] [%clk 00:00:11]} 52. f4 {[%emt 00:00:02] [%clk 00:00:08]} Qd3+ {[%emt
00:00:02] [%clk 00:00:11]} 53. R2e3 {[%emt 00:00:01] [%clk 00:00:09]} Qf1 {[%emt
00:00:01] [%clk 00:00:12]} 54. f5 {[%emt 00:00:02] [%clk 00:00:10]} Qg1+ {[%emt
00:00:01] [%clk 00:00:13]} 55. Kf4 {[%emt 00:00:01] [%clk 00:00:11]} Qh2 {[%clk
00:00:14]} 56. Kg5 {[%emt 00:00:01] [%clk 00:00:12]} Qxa2 {[%emt 00:00:01] [%clk
00:00:14]} 57. f6 {[%emt 00:00:02] [%clk 00:00:13]} Qf2 {[%emt 00:00:03] [%clk
00:00:12]} 58. Kg6 {[%emt 00:00:02] [%clk 00:00:13]} b5 {[%emt 00:00:02] [%clk
00:00:12]} 59. cxb5+ {[%emt 00:00:02] [%clk 00:00:13]} Kxb5 {[%clk 00:00:14]}
60. f7 {[%emt 00:00:01] [%clk 00:00:14]} c4 {[%emt 00:00:02] [%clk 00:00:15]}
61. Re5+ {[%emt 00:00:01] [%clk 00:00:14]} Kb4 {[%clk 00:00:16]} 62. Rf5 {[%emt
00:00:04] [%clk 00:00:13]} 1-0

[Site "Europe Echecs"]

[Event "Championnat d'Europe de Blitz"]
[Date "2024.12.09"]
[White "Guliyev, Namig"]
[Black "Ragger, Markus"]
[WhiteElo "2484"]
[BlackElo "2577"]
[Round "13.20"]
[Result "0-1"]
[TimeControl "180+2"]

1. e4 {[%emt 00:06:28] [%clk 00:03:02]} e5 {[%clk 00:03:04]} 2. Nf3 {[%emt
00:00:01] [%clk 00:03:03]} Nc6 {[%clk 00:03:05]} 3. Bb5 {[%clk 00:03:04]} a6
{[%clk 00:03:06]} 4. Ba4 {[%emt 00:00:02] [%clk 00:03:05]} Bc5 {[%clk 00:03:07]}
5. O-O {[%emt 00:00:03] [%clk 00:03:04]} Nge7 {[%emt 00:00:01] [%clk 00:03:08]}
6. c3 {[%emt 00:00:01] [%clk 00:03:05]} Ng6 {[%emt 00:00:02] [%clk 00:03:08]} 7.
d4 {[%emt 00:00:04] [%clk 00:03:03]} Ba7 {[%emt 00:00:01] [%clk 00:03:09]} 8.
Bg5 {[%emt 00:00:01] [%clk 00:03:04]} f6 {[%emt 00:00:01] [%clk 00:03:10]} 9.
Be3 {[%emt 00:00:02] [%clk 00:03:04]} O-O {[%emt 00:00:02] [%clk 00:03:10]} 10.
Nbd2 {[%emt 00:00:09] [%clk 00:02:57]} Kh8 {[%emt 00:00:02] [%clk 00:03:09]} 11.
Re1 {[%emt 00:00:03] [%clk 00:02:56]} exd4 {[%emt 00:00:05] [%clk 00:03:07]} 12.
cxd4 {[%emt 00:00:03] [%clk 00:02:56]} d5 {[%emt 00:00:06] [%clk 00:03:02]} 13.
exd5 {[%emt 00:00:08] [%clk 00:02:50]} Nb4 {[%emt 00:00:09] [%clk 00:02:55]} 14.
Ne4 {[%emt 00:00:08] [%clk 00:02:43]} Nxd5 {[%emt 00:00:06] [%clk 00:02:52]} 15.
Nc3 {[%emt 00:00:12] [%clk 00:02:33]} Be6 {[%emt 00:00:12] [%clk 00:02:43]} 16.
Bb3 {[%emt 00:00:13] [%clk 00:02:21]} Qd7 {[%emt 00:00:12] [%clk 00:02:33]} 17.
Ne4 {[%emt 00:00:12] [%clk 00:02:11]} Nxe3 {[%emt 00:00:22] [%clk 00:02:13]} 18.
fxe3 {[%emt 00:00:11] [%clk 00:02:02]} Rae8 {[%emt 00:00:13] [%clk 00:02:02]}
19. Nc3 {[%emt 00:00:23] [%clk 00:01:41]} Bg4 {[%emt 00:00:09] [%clk 00:01:55]}
20. h3 {[%emt 00:00:02] [%clk 00:01:41]} Bxh3 {[%emt 00:00:15] [%clk 00:01:42]}
21. gxh3 {[%emt 00:00:09] [%clk 00:01:34]} Qxh3 {[%emt 00:00:01] [%clk
00:01:43]} 22. Kf2 {[%emt 00:00:04] [%clk 00:01:32]} Nh4 {[%emt 00:00:13] [%clk
00:01:32]} 23. Rg1 {[%emt 00:00:10] [%clk 00:01:24]} Nf5 {[%emt 00:00:28] [%clk
00:01:07]} 24. Nd5 {[%emt 00:00:06] [%clk 00:01:20]} g5 {[%emt 00:00:15] [%clk
00:00:54]} 25. Qf1 {[%emt 00:00:06] [%clk 00:01:15]} Qxf1+ {[%emt 00:00:06]
[%clk 00:00:50]} 26. Raxf1 {[%emt 00:00:04] [%clk 00:01:13]} c6 {[%emt 00:00:01]
[%clk 00:00:51]} 27. Nc7 {[%emt 00:00:07] [%clk 00:01:08]} Rxe3 {[%emt 00:00:02]
[%clk 00:00:51]} 28. Bc2 {[%emt 00:00:10] [%clk 00:01:01]} Rxf3+ {[%emt
00:00:06] [%clk 00:00:46]} 29. Kxf3 {[%emt 00:00:02] [%clk 00:01:00]} Nxd4+
{[%clk 00:00:48]} 30. Ke4 {[%emt 00:00:21] [%clk 00:00:41]} Nxc2 {[%emt
00:00:02] [%clk 00:00:48]} 31. Rh1 {[%emt 00:00:08] [%clk 00:00:33]} Ne3 {[%emt
00:00:09] [%clk 00:00:43]} 32. Rf3 {[%emt 00:00:16] [%clk 00:00:18]} f5+ {[%emt
00:00:03] [%clk 00:00:43]} 33. Ke5 {[%emt 00:00:07] [%clk 00:00:13]} g4 {[%emt
00:00:07] [%clk 00:00:38]} 34. Ne6 {[%emt 00:00:10] [%clk 00:00:05]} gxf3 {[%emt
00:00:05] [%clk 00:00:35]} 35. Nxf8 {[%emt 00:00:01] [%clk 00:00:05]} f2 {[%clk
00:00:37]} 36. Kf6 {[%emt 00:00:05] [%clk 00:00:03]} f1=Q {[%emt 00:00:07] [%clk
00:00:31]} 37. Ng6+ {[%emt 00:00:02] [%clk 00:00:03]} Kg8 {[%emt 00:00:01] [%clk
00:00:31]} 38. Ne7+ {[%emt 00:00:02] [%clk 00:00:04]} Kf8 {[%emt 00:00:02] [%clk
00:00:31]} 39. Rxh7 {[%emt 00:00:03] [%clk 00:00:03]} Nd5+ {[%emt 00:00:09]
[%clk 00:00:24]} 40. Nxd5 {[%emt 00:00:02] [%clk 00:00:03]} Bd4+ {[%clk
00:00:26]} 0-1

[Site "Europe Echecs"]